Cogmind - Beta 16 @@@ ROGUE MODE // 2025.11.02 @ 17:21:09 Player: Omega Result: Self-destructed Performance ------------- Evolutions (2) 1000 Regions Visited (5) 1000 Robots Destroyed (28) 140 Value Destroyed (856) 856 Prototype IDs (1) 20 Alien Tech Used (0) 0 Bonus (576) 576 TOTAL SCORE: 3592 Bonus ------- High Alert Combat Kills 42 Follower Combat Kills 234 Aligned with FarCom 300 Cogmind --------- Core Integrity 161/550 Matter 300/300 Energy 100/100 System Corruption 19% Temperature Cool (9) Movement Hovering (360) Ox4 Location -8/Materials Parts ------- > --- POWER (2) -------- (None) > --- PROPULSION (4) --- Combat Airjet > --- UTILITY (3) ------ High-capacity Storage Unit Terrain Scan Processor > --- WEAPON (2) ------- Latent Energy Streamer > --- INVENTORY (20) --- Reinforced Ion Engine Flight Unit Flight Unit Flight Unit High-capacity Storage Unit Large Battery (200) Large Battery (200) Large Matter Pod (150) Advanced Weight Redist. System Improved Signal Interpreter Improved Terrain Scanner Weapon Shielding Improved Light Armor Plating System Shield Improved Datajack Improved Datajack Welding Torch Peak State ------------ > --- POWER ------------ Light Deuterium Engine Light Deuterium Engine > --- PROPULSION ------- Airjet Airjet Airjet Combat Airjet > --- UTILITY ---------- High-capacity Storage Unit Terrain Scan Processor Hacking Suite > --- WEAPON ----------- Particle Gun Latent Energy Streamer > --- INVENTORY -------- Reinforced Ion Engine Flight Unit High-capacity Storage Unit Large Battery Large Battery Large Matter Pod Advanced Weight Redist. System Improved Signal Interpreter Improved Terrain Scanner Weapon Shielding Improved Light Armor Plating System Shield Improved Datajack Improved Datajack Welding Torch [Rating: 41] Favorites ----------- Power Light Ion Engine Engine Light Ion Engine Propulsion Light Treads Treads Light Treads Leg Aluminum Leg Hover Unit Airjet Utility Improved Terrain Scanner Device Improved Terrain Scanner Storage High-capacity Storage Unit Processor Terrain Scan Processor Hackware Hacking Suite Protection Improved Light Armor Plating Weapon Latent Energy Streamer Energy Gun Particle Gun Energy Cannon Latent Energy Streamer Ballistic Gun Light Assault Rifle Launcher Grenade Launcher Special Weapon Mining Laser Build | -11 -10 -10 -10 -9 -8 ------- Run | Yrd Mat Min Exi Min Mat Slots Evolved 4 | . . . . . 4 Power 1 | . . . . . 1 Propulsion 2 | . . . . . 2 Utility 1 | . . . . . 1 Weapon . | . . . . . . Parts Attached 33 | 7 2 7 5 . 12 Power 7 | 1 1 1 . . 4 Engine 7 | 1 1 1 . . 4 Core . | . . . . . . Reactor . | . . . . . . Propulsion 11 | 2 1 2 . . 6 Treads 4 | . . 2 . . 2 Leg 3 | 2 1 . . . . Wheel . | . . . . . . Hover 4 | . . . . . 4 Flight . | . . . . . . Utility 8 | 2 . 1 3 . 2 Device 2 | 1 . 1 . . . Storage 3 | 1 . . 2 . . Processor 1 | . . . . . 1 Hackware 1 | . . . . . 1 Protection 1 | . . . 1 . . Artifact . | . . . . . . Weapon 7 | 2 . 3 2 . . Energy Gun 1 | . . 1 . . . Energy Cannon 1 | . . . 1 . . Ballistic Gun 2 | 2 . . . . . Ballistic Cannon . | . . . . . . Launcher 1 | . . 1 . . . Special Weapon 2 | . . 1 1 . . Impact Weapon . | . . . . . . Slashing Weapon . | . . . . . . Piercing Weapon . | . . . . . . Special Melee Weapon . | . . . . . . Unidentified Prototypes 1 | . . . 1 . . Parts Lost 14 | . . 5 . . 9 Power 4 | . . 1 . . 3 Propulsion 6 | . . 2 . . 4 Utility 1 | . . . . . 1 Weapon 3 | . . 2 . . 1 Highest Loss Streak 7 | . . 3 . . 7 To Critical Strikes . | . . . . . . Average Backups 9 | 3 5 5 4 12 17 Power . | . 1 . . . 1 Propulsion 1 | 1 2 1 . 2 3 Utility 4 | . . . 2 7 10 Weapon 1 | 1 1 2 1 2 . Tool/Special . | . . . . . . Unused Backups 24 | . . 1 2 . 21 Power . | . . . . . . Propulsion 7 | . . 1 . . 6 Utility 11 | . . . 1 . 10 Weapon 3 | . . . 1 . 2 Tool/Special 3 | . . . . . 3 Average Slot Usage (%) 88 | . 97 86 87 85 92 Engine 14 | . 12 13 14 14 16 Treads 24 | . . 15 28 28 27 Leg 3 | . 27 11 . . . Hover 1 | . . . . . 5 Device 11 | . 14 14 13 14 4 Storage 7 | . 14 6 2 14 9 Processor 2 | . . . . . 8 Hackware 1 | . . . . . 4 Energy Gun 6 | . . 4 11 . 7 Energy Cannon 6 | . . . 4 14 8 Ballistic Gun 4 | . 28 17 . . . Special Weapon 3 | . . 1 9 . . Peak Build Rating 41 | 9 9 14 21 20 41 Average Rating 19 | 5 8 11 16 19 30 On Entrance 11 | . 9 9 14 18 20 Avg Prop Armor Cover (%) . | . . . . . . Naked Turns . | . . . . . . Heaviest Build 67 | 11 13 13 59 54 67 Greatest Support 83 | 20 20 40 40 40 83 Greatest Overweight (x) 4 | 1 . 2 1 1 4 Average Overweight (x) . | . . . . 1 . Largest Inventory Capacity 20 | 8 8 8 20 20 20 Average Capacity 12 | 7 8 6 7 20 20 Most Carried 20 | 6 8 7 10 19 20 Average Carried 9 | 3 5 5 4 12 17 Final Capacity 20 | 8 8 5 20 20 20 Final Carried 19 | 4 7 5 10 19 17 Scrap Suit Usage (%) 29 | . . 55 63 . . Class Distribution -------------------- 49% | Mutant 29% | Scrapper 10% | Scavenger-Skirmisher 9% | Scavenger-Mutant Dominant Class ---------------- Mutant | -10/Materials Scrapper | -10/Mines Scrapper | -10/Exiles Mutant | -9/Mines Scavenger-Skirmisher | -8/Materials Resources | -11 -10 -10 -10 -9 -8 ----------- Run | Yrd Mat Min Exi Min Mat Matter Collected 1094 | 263 63 140 300 108 220 Remotely . | . . . . . . Salvage Created 973 | 34 129 228 . . 582 Parts 57 | 6 6 4 . 2 39 Haulers Intercepted . | . . . . . . Recyclers Shooed 2 | 1 . 1 . . . Parts Field Recycled . | . . . . . . Retrieved Matter . | . . . . . . Parts Self-Destructed . | . . . . . . Prevented . | . . . . . . Parts Restored . | . . . . . . Kills | -11 -10 -10 -10 -9 -8 ------- Run | Yrd Mat Min Exi Min Mat Combat Hostiles Destroyed 18 | . 3 2 . . 13 Guns 10 | . 3 2 . . 5 AOE 8 | . . . . . 8 Classes Destroyed 8 | 1 1 1 . 1 4 Builder 3 | . . . . 1 2 Tunneler 3 | 2 . . . . 1 Recycler 2 | . . 2 . . . Watcher 2 | . . . . . 2 Swarmer 6 | . . . . . 6 Grunt 8 | . 3 2 . . 3 Brawler 1 | . . . . . 1 Sentry 3 | . . . . . 3 Best Kill Streak 8 | 2 2 2 . 1 8 Combat Bots Only 5 | . 2 1 . . 5 Max Kills in Single Turn 3 | 1 1 1 . 1 3 Gunslinging . | . . . . . . Exploded 3 | . . . . . 3 Melee . | . . . . . . Uniques/NPCs Destroyed . | . . . . . . Combat | -11 -10 -10 -10 -9 -8 -------- Run | Yrd Mat Min Exi Min Mat Hostile Shots Fired 200 | . 18 33 . . 149 Missed 45 | . 1 9 . . 35 Hits 155 | . 17 24 . . 114 Projectile 155 | . 17 24 . . 114 AOE 3 | . . 3 . . . Critical Strikes 5 | . . 1 . . 4 Damage Taken 2409 | . 210 643 . . 1556 Core 612 | . 92 131 . . 389 Absorbed by Shields . | . . . . . . Core Remaining (%) 55 | 100 . . . 10 . Volleys Fired 138 | 10 20 42 . . 66 Largest 2 | 2 2 2 . . 1 Hottest 120 | 40 40 120 . . 65 Shots Fired 199 | 20 40 73 . . 66 Gun 182 | 20 40 64 . . 58 Cannon 8 | . . . . . 8 Launcher . | . . . . . . Special 9 | . . 9 . . . Kinetic 121 | 20 40 61 . . . Thermal 70 | . . 12 . . 58 Explosive . | . . . . . . Electromagnetic 8 | . . . . . 8 Robot Hit Streak 6 | 4 6 6 . . 6 Robot Miss Streak 5 | 1 2 3 . . 5 Penetration Max . | . . . . . . Secondary Targets 1 | . . 1 . . . Max Gunslinging Chain 1 | . . 1 . . . Shots Hit Robots 103 | 13 23 43 . . 24 Core Hits 55 | 5 11 11 . . 28 Critical Kills . | . . . . . . Critical Parts Destroyed . | . . . . . . Critical Strikes 3 | . . . . . 3 Burn 3 | . . . . . 3 Melee Attacks . | . . . . . . Impact . | . . . . . . Slashing . | . . . . . . Piercing . | . . . . . . Sneak Attacks . | . . . . . . Combat Hostiles . | . . . . . . Follow-up Attacks . | . . . . . . Damage Inflicted 2288 | 114 194 371 . 7 1602 Guns 1018 | 114 194 371 . . 339 Cannons 21 | . . . . . 21 Explosions 1226 | . . . . . 1226 Melee . | . . . . . . Ramming 23 | . . . . 7 16 Kinetic 636 | 114 194 328 . . . Thermal 382 | . . 43 . . 339 Explosive . | . . . . . . Electromagnetic 1247 | . . . . . 1247 Impact . | . . . . . . Slashing . | . . . . . . Piercing . | . . . . . . Highest Corruption 19 | . . 2 2 2 19 Average Corruption 2 | . . 2 2 2 4 Corruption Purged . | . . . . . . Corruption Blocked . | . . . . . . Effects 37 | . . 1 11 7 18 Message Errors 7 | . . . 3 . 4 Matter Fused 13 | . . . 4 2 7 Heat Flow Errors 7 | . . 1 1 3 2 Energy Discharges 1 | . . . . . 1 Data Loss (minor) 4 | . . . 1 2 1 Data Loss (major) 3 | . . . 1 . 2 Alerts 1 | . . . 1 . . Misdirections 1 | . . . . . 1 Overload Shots . | . . . . . . Overflow Damage 12 | . . . . . 12 Projectiles . | . . . . . . Explosions 12 | . . . . . 12 Melee . | . . . . . . Knockbacks 1 | . . . . . 1 Impact 1 | . . . . . 1 Kinetic . | . . . . . . Secondary . | . . . . . . Self-Inflicted Damage . | . . . . . . Shots . | . . . . . . Rammed 2 | . . . . 1 1 Targets Rammed 3 | . . . . 2 1 Kicked . | . . . . . . Crushed 1 | . . . . 1 . Highest Temperature 466 | . 18 191 173 197 466 Average Temperature 103 | . 9 24 87 90 140 Received Heat Transfer 1062 | . 123 201 . . 738 Effects 5 | . . . . . 5 Shutdowns 4 | . . . . . 4 Energy Bleed 1 | . . . . . 1 Siege Activations . | . . . . . . Martial Activations . | . . . . . . Shielding Activations . | . . . . . . Robots Disrupted . | . . . . . . Combat Hostiles . | . . . . . . Robots Corrupted 1 | . . . . . 1 Combat Hostiles . | . . . . . . Parts Fried 5 | . . . . . 5 Impact Corruptions . | . . . . . . Robots Melted . | . . . . . . Combat Hostiles . | . . . . . . Parts Melted 5 | . . . . . 5 Heat Transferred 1147 | . . 111 . . 1036 Parts Sabotaged . | . . . . . . Parts Stolen . | . . . . . . Parts Stripped . | . . . . . . Power Chain Reactions 1 | . . . . . 1 Latent Energy Used 1094 | . . . . . 1094 LE Corruption 19 | . . . . . 19 Alert | -11 -10 -10 -10 -9 -8 ------- Run | Yrd Mat Min Exi Min Mat Maximum Alert Level 2 | . . . . . 2 Low Security (%) 96 | 100 100 100 . 100 90 Level 1 . | . . . . . 1 Level 2 3 | . . . . . 8 Level 3 . | . . . . . . Level 4 . | . . . . . . Level 5 . | . . . . . . High Security . | . . . . . . Max Security . | . . . . . . Peak Influence 660 | 5 50 30 . 70 660 Initial 8 | . . 3 . . 8 Average 39 | . 21 3 . 14 86 Influence Increases 1289 | 10 80 109 . 139 951 Destroy 0b10 Robot/C 520 | . 60 40 . 100 320 Destroy 0b10 Robot/NC 50 | 10 . 10 . 5 25 Destroy Leader 124 | . 20 10 . 20 74 Allied During Kill 21 | . . . . 14 7 Successful Hack 50 | . . . . . 50 Disable Machine 135 | . . . . . 135 Anti-Garrison Action 150 | . . . . . 150 Destroy Structure 134 | . . 4 . . 130 Lose Combat Pursuer 105 | . . 45 . . 60 Influence Decreases 711 | 10 70 89 30 117 395 Entered New Map 51 | . . 7 30 . 14 Time Decay 530 | 10 70 82 . 117 251 Lost Part 90 | . . . . . 90 Lost Ally 40 | . . . . . 40 Squads Dispatched 5 | . 2 . . . 3 Investigation 1 | . . . . . 1 Extermination . | . . . . . . Reinforcement 2 | . 2 . . . . Assault 2 | . . . . . 2 Garrison . | . . . . . . Intercept . | . . . . . . Searches Triggered . | . . . . . . Construction Impeded . | . . . . . . Haulers Reinforced . | . . . . . . Active Scanning Responses . | . . . . . . Cargo Convoy Interrupts . | . . . . . . Stealth | -11 -10 -10 -10 -9 -8 --------- Run | Yrd Mat Min Exi Min Mat Distress Signals 2 | . . . . . 2 Communications Jammed . | . . . . . . Distress Signals . | . . . . . . Times Spotted 53 | . 7 9 . . 37 Peak Tracking Total 14 | . 2 2 . . 14 Tactical Retreats 4 | . . 2 . . 2 Traps | -11 -10 -10 -10 -9 -8 ------- Run | Yrd Mat Min Exi Min Mat Traps Triggered 2 | . 1 . . . 1 Indirectly . | . . . . . . Trap Hack Attempts . | . . . . . . Triggered . | . . . . . . Disarmed . | . . . . . . Reprogrammed . | . . . . . . Reused . | . . . . . . Traps Extracted . | . . . . . . Installed . | . . . . . . Triggered . | . . . . . . Machines | -11 -10 -10 -10 -9 -8 ---------- Run | Yrd Mat Min Exi Min Mat Machines Disabled 10 | . . . . . 10 Max in Single Turn 3 | . . . . . 3 Garrison Access 1 | . . . . . 1 Machines Repaired . | . . . . . . Machines Dismantled . | . . . . . . Machines Sabotaged . | . . . . . . Overloaded Fab Kills . | . . . . . . Hacking | -11 -10 -10 -10 -9 -8 --------- Run | Yrd Mat Min Exi Min Mat Machines Accessed 7 | . 2 . 1 . 4 Terminals 5 | . 1 . . . 4 Fabricators . | . . . . . . Repair Stations . | . . . . . . Recycling Units 1 | . 1 . . . . Scanalyzers . | . . . . . . Garrison Access . | . . . . . . Total Hacks 24 | . 3 . 8 . 13 Successful 14 | . . . 8 . 6 Failed 10 | . 3 . . . 7 Catastrophic 4 | . . . . . 4 Database Lockouts . | . . . . . . Manual 10 | . 2 . 1 . 7 Terminals 15 | . 2 . . . 13 Fabricators . | . . . . . . Repair Stations . | . . . . . . Recycling Units 1 | . 1 . . . . Scanalyzers . | . . . . . . Garrison Access . | . . . . . . Terminal Hacks 12 | . . . 8 . 4 Record 8 | . . . 8 . . Locate Traps 2 | . . . . . 2 Dispatch Records 1 | . . . . . 1 Recall Reinforcements 1 | . . . . . 1 Fabricator Hacks . | . . . . . . Repair Station Hacks . | . . . . . . Recycling Unit Hacks . | . . . . . . Scanalyzer . | . . . . . . Garrison Access Hacks . | . . . . . . Unauthorized Hacks 2 | . . . . . 2 Terminals 2 | . . . . . 2 Botnet 2 | . . . . . 2 Fabricators . | . . . . . . Repair Stations . | . . . . . . Recycling Units . | . . . . . . Scanalyzers . | . . . . . . Garrison Access . | . . . . . . Data Cores Recovered . | . . . . . . Used . | . . . . . . Hacking Detections 6 | . 2 . . . 4 Full Trace Events . | . . . . . . Feedback Events . | . . . . . . Feedback Blocked . | . . . . . . Robot Schematics Acquired . | . . . . . . Robots Built . | . . . . . . Authchips . | . . . . . . Time . | . . . . . . Total Robot Build Rating . | . . . . . . Part Schematics Acquired . | . . . . . . Parts Built . | . . . . . . Authchips . | . . . . . . Time . | . . . . . . Total Part Build Rating . | . . . . . . Part Studies Acquired . | . . . . . . Parts Repaired . | . . . . . . Time . | . . . . . . Parts Recycled . | . . . . . . Recycled Matter . | . . . . . . Retrieved Matter . | . . . . . . Retrieved Components . | . . . . . . Parts Scanalyzed . | . . . . . . Part Schematics Acquired . | . . . . . . Parts Damaged . | . . . . . . Bothacking | -11 -10 -10 -10 -9 -8 ------------ Run | Yrd Mat Min Exi Min Mat Used RIF Installer . | . . . . . . Robots Hacked . | . . . . . . Non-combat . | . . . . . . Combat . | . . . . . . Robot Hacks Applied . | . . . . . . Relay Couplers Released 2 | . . . . . 2 Machine Destruction 2 | . . . . . 2 Fabnet Peak Effective % . | . . . . . . Robots Rewired . | . . . . . . Allies Hacked . | . . . . . . Hacks Repelled . | . . . . . . Allies | -11 -10 -10 -10 -9 -8 -------- Run | Yrd Mat Min Exi Min Mat Total Allies 2 | . . . . 2 . Largest Group 2 | . . . . 2 2 Highest-Rated Group 43 | . . . . 43 43 Highest-Rated Ally 31 | . . . . 31 31 Total Orders . | . . . . . . Ally Attacks 32 | . . . . 17 15 Total Damage 499 | . . . . 233 266 Kills 8 | . . . . 5 3 Allies Corrupted . | . . . . . . Allies Melted . | . . . . . . Intel | -11 -10 -10 -10 -9 -8 ------- Run | Yrd Mat Min Exi Min Mat Active Infowar (turns) 1908 | 18 190 225 390 657 428 Terrain 1908 | 18 190 225 390 657 428 Robot Analysis Total . | . . . . . . Derelict Logs Recovered . | . . . . . . Drone Launches . | . . . . . . Drone Recoveries . | . . . . . . Exploration | -11 -10 -10 -10 -9 -8 ------------- Run | Yrd Mat Min Exi Min Mat Turns Passed 3479 | 97 190 512 1149 657 874 Spaces Moved 1803 | 54 109 256 666 269 449 Core 20 | 17 . 3 . . . Treads 1445 | . . 162 666 269 348 Legs 237 | 37 109 91 . . . Wheels . | . . . . . . Hover 101 | . . . . . 101 Flight . | . . . . . . Fastest Speed 50 | 50 120 120 160 240 115 Average Speed 167 | 99 120 145 168 240 154 Slowest Speed 360 | 120 120 160 240 240 360 Overloaded Moves . | . . . . . . Propulsion Burnouts . | . . . . . . Robots Hopped . | . . . . . . Potential Cave-ins 2 | . . 2 . . . Cave-ins Triggered 1 | . . 1 . . . Exploration Rate (%) 48 | 5 27 55 93 69 41 Regions Visited 5 Branch Regions 3 Pre-discovered Areas 2 | . . . 1 1 . Known Exits Taken . | . . . . . . Unknown Exits Taken 5 | 1 1 1 1 1 . Scrap Searched 3 | . . . . 3 . Spaces Dug 9 | . . 9 . . . Terrain Destroyed 164 | . . 9 . . 155 Melee . | . . . . . . Projectile 9 | . . 9 . . . AOE 155 | . . . . . 155 Terrain Rammed . | . . . . . . Walls Destroyed . | . . . . . . Machines Disabled . | . . . . . . Actions | -11 -10 -10 -10 -9 -8 --------- Run | Yrd Mat Min Exi Min Mat Total 2081 | 80 136 319 697 279 570 Wait 5 | . . 2 . . 3 Move 1798 | 53 108 255 665 268 449 Hop . | . . . . . . Pick Up 61 | 10 5 6 14 9 17 Fast Attach 3 | 1 . . . . 2 Attach 34 | 6 2 7 5 . 14 Detach 6 | . . 1 2 . 3 Swap 4 | . . 1 2 . 1 Drop 28 | . 1 5 8 . 14 Fire 138 | 10 20 42 . . 66 Melee . | . . . . . . Ram . | . . . . . . Kick . | . . . . . . Crush 3 | . . . . 2 1 Escape Stasis . | . . . . . . Rewire 1 | . . . 1 . . Trap . | . . . . . . Miscellaneous . | . . . . . . Route ------- -11/Scrapyard -10/Materials -10/Mines (discovered 2 exits: [*Mat] / *Exi) -10/Exiles (discovered 2 exits: [*Min x2]) -9/Mines (discovered 2 exits: *Mat x2) -8/Materials History --------- Turn | Location | Event 6 | -11/Scrapyard | Discovered new exit (range 15) 98 | -11/Scrapyard | Entered Materials 223 | -10/Materials | Discovered new exit (range 16) 288 | -10/Materials | Entered Mines 317 | -10/Mines | Build established: Mutant 359 | -10/Mines | Crushed by falling debris 359 | -10/Mines | Core integrity fell below 50% 403 | -10/Mines | Discovered new exit (range 3) 495 | -10/Mines | Core integrity fell below 20% 508 | -10/Mines | Found a Scrap Suit stashed away for nefarious purposes 512 | -10/Mines | Found Scrap Suit 527 | -10/Mines | Lost 3 parts (1p2n) 629 | -10/Mines | Assembled infested the area 682 | -10/Mines | Met 8R-AWN 787 | -10/Mines | Discovered new exit (range 5) 800 | -10/Mines | Entered Exiles 821 | -10/Exiles | Build established: Scrapper 827 | -10/Exiles | Discovered new exit (range 15) 846 | -10/Exiles | Welcomed by 8R-AWN 873 | -10/Exiles | Met EX-HEX 951 | -10/Exiles | Met EX-DEC 1016 | -10/Exiles | Visited The Gauntlet 1391 | -10/Exiles | Met EX-BIN 1478 | -10/Exiles | Aligned with FarCom system 1479 | -10/Exiles | Given EX-Vault access code 1529 | -10/Exiles | Opened EX-Vault 1540 | -10/Exiles | Found Prototype Storage 1543 | -10/Exiles | Found Prototype Energy Cannon 1547 | -10/Exiles | Found Prototype Ballistic Gun 1548 | -10/Exiles | Identified Latent Energy Streamer 1628 | -10/Exiles | Warned to stay clear of 0b10 Research branches 1714 | -10/Exiles | Learned location of Zion (-6) 1834 | -10/Exiles | Build established: Mutant 1925 | -10/Exiles | Discovered new exit (range 11) 1949 | -10/Exiles | Left Exiles lab with Latent Energy Streamer 1949 | -10/Exiles | Entered Mines 1993 | -9/Mines | A weapon hastily lodged in a ceiling crevice suddenly fell to the ground 2037 | -9/Mines | Discovered new exit (range 10) 2592 | -9/Mines | Discovered new exit (range 8) 2593 | -9/Mines | Learned location of Storage (-7) 2606 | -9/Mines | Entered Materials 2606 | -8/Materials | Accompanied by 2 allies 2606 | -8/Materials | Evolved 4 slots: Power x1, Propulsion x2, Utility x1 2611 | -8/Materials | Led the pair of lost Derelicts to an unsafe place 3403 | -8/Materials | System corruption reached 10% 3421 | -8/Materials | Build established: Scavenger-Mutant 3473 | -8/Materials | Core integrity fell below 50% 3480 | -8/Materials | Self-destructed Last Messages --------------- U-05 Engineer lays Concrete. Lgt. Deuterium Engine destroyed. U-05 Engineer lays Concrete. Critical hit (Burn: +37). U-05 Engineer lays Concrete. U-05 Engineer builds a Wall. U-05 Engineer lays Concrete. U-05 Engineer builds a Door. U-05 Engineer lays Concrete. Hacking Suite destroyed. G-47 Trooper misfires. U-05 Engineer lays Concrete. U-05 Engineer builds a Wall. Critical hit (Burn: +37). M-28 Smith repairs G-47 Trooper. U-05 Engineer lays Concrete. M-28 Smith repairs G-47 Trooper Lgt. Nuclear Core. U-05 Engineer lays Concrete. U-05 Engineer builds a Wall. Map ----- +----------------------------------------------------+ | ????????????????????????????????????? | | ????????????????????????????????????? | | ????????????????????????????????????? | | ????????????????????????????????????? | | ????????????????????????????????????? | | ????????????????????????????????????? | | ????????????????????????????????????? | | ????????????????????????????????????? | | ???????###########??????????????????? | | ???????# !#??????????????????? | | ???????# #??????????????????? | | ???????# #??????????????????? | | ???????# #??????????????????? | | ???????# " ##?????????????????? | | ???????# ! "#?????????????????? | | ?####### "#?????????????????? | | ## # ! =%! #?????????????????? | | ;;;;;;;;; #+### ##?????????#???????? | | ; =% ############ ######??? | | ; =] "% ?? | | %[ ?? | | * ?? | | ### ####/########??? | | ; ;;##/#??? / #??? | | # ggbg #??? #??? | | #; @!g b " #???? [ ???? | | ? ?#; *ug " #???? ]|| ???? | | ?""####??## [#g gm" #?????]| [????? | | ?????????##u !#= #?????|| ????? | | ?????????## !%# ! ! #?????? ?????? | | ??????????#% =#""/####?????? ??#?#? | | ??????????# !b# #??????#+#?????? | | ??????????# *%# ##????## #????#? | | ?Y????????# =g/ #?????## #????#? | | ??????????# |# #??#?#?# ##?#??? | | ??????????# # #????#?# #?????# | | ??????????# gg# ##?????# ###??#? | | ??????????# ######+#?#??#?# #?#?#?# | | ??????????# ###### ######## #??#?#? | | ??????????# #####?? | | ??????????+ ############### #! #?# | | ?????????? #??????##?????# # ##? | | ??????????# g #??Y?#?#?###### # ### | | ??????????# #????? ?# # " "## | | ??????????# #??"""? ?# # " [" # | | ??????????# #?????? ?# " # [%" | | ??????????# #? ???? # # "% " # | | ??????????+ +?? ? # # #"*"" # | | ??????????# #???" ? # "% =%" ## | | ??????????# #?""? # ! "#"#%# # | +----------------------------------------------------+ Best States ------------- Heat Dissipation 31 Energy Generation 23 Energy Capacity 290 Matter Stores 300 Matter Capacity 300 Sight Range 16 Terrain Scan Range 16 Terrain Scan Density 85 Armor Coverage 150 Evasion (%) 55 Recoil Reduction 4 Offensive Hacking 10 Item Schematics ----------------- None Robot Schematics ------------------ None Fabricated ------------ Nothing Repaired ---------- Nothing Studied --------- None Alien Tech Used ----------------- None Achievements -------------- Blue Mage Ghost 'Em Sixth Sense Challenges ------------ None Game ------ Seed MinesnifferComponentSabre Manual? 0 Play Time 00:51:12 Cumulative 23.7 hours Start 2025.10.30 @ 23:26:27 End 2025.11.02 @ 17:21:09 Sessions 3 Manual Loads 0 Difficulty Rogue Special Mode None Game No. 30 Rogue 30 Adventurer 0 Explorer 0 Win Type - Total 0 Types 0/0/0/0/0/0/0/0/0/0 Lore% 16 Gallery% 23 Achievement% 15 Wizard Run 0 Options --------- Layout 1 ASCII 0 Keyboard 0 Movement Mouse Keybinds 0 Fullscreen 1 Font 24/Smallcaps Map View 50x35 Zoom Use 0% Tactical HUD 0 Map Filters NONE Filters NONE Steam 1 RUN: 88fcd527-fe61-4b0f-b0e1-e254af5d7e12